Cogmind - Beta 14 --- EXPLORER MODE // 2024.09.15 @ 16:26:50 Player: Cwaftwer Result: Destroyed by as-47584 with Assembled Heavy Rifle Performance ------------- Evolutions (4) 2000 Regions Visited (16) 3200 Robots Destroyed (145) 725 Value Destroyed (5277) 5277 Prototype IDs (56) 1120 Alien Tech Used (0) 0 Bonus (2796) 2796 TOTAL SCORE: 15118 Bonus ------- High Alert Combat Kills 22 Follower Combat Kills 478 Aligned with FarCom 300 Met Data Miner 300 Met Imprinter 300 Was Imprinted 300 Destroyed Z-Imprinter 1000 Triggered Deep Caves Wall 500 Exposed GOLEM Chamber 500 Friendly Fire -904 Cogmind --------- Core Integrity 0/850 Matter 102/300 Energy 99/100 System Corruption 0% Temperature Cool (0) Movement Core (50) Location -6/Deep Caves Parts ------- > --- POWER (2) -------- (None) > --- PROPULSION (6) --- (None) > --- UTILITY (6) ------ (None) > --- WEAPON (2) ------- CR-A16's Pointy Stick > --- INVENTORY (5) ---- GOLEM Unit GOLEM Unit Peak State ------------ > --- POWER ------------ Neutrino Core Neutrino Core > --- PROPULSION ------- Improved Aluminum Leg Titanium Leg Titanium Leg Improved Carbon-fiber Leg Flexi-carbon Leg > --- UTILITY ---------- Huge Storage Unit Compact Matter Pod Advanced Terrain Scanner Launcher Loader Improved Light Armor Plating > --- WEAPON ----------- Mini Smartbomb Launcher RU-N14's Throwing Claymores > --- INVENTORY -------- Micro Nuclear Core Titanium Leg Improved Carbon-fiber Leg Improved Heat Sink Energy Well Reflective Plating System Shield System Shield Authchip [R/Combat] Authchip [Propulsion] Authchip [Armor] Authchip [Weapon] High-powered Tractor Beam Cooled Pulse Rifle Enhanced Autogun Heavy Rocket Launcher Rocket Array Rocket Array Long-range Missile Launcher Long-range Missile Launcher Mini Smartbomb Launcher Remote Datajack Heavy Flail Great Maul CR-A16's Pointy Stick [Rating: 75] Favorites ----------- Power Neutrino Core Engine Improved Ion Engine Power Core Neutrino Core Reactor Zionite Light DM Reactor Propulsion Titanium Leg Leg Titanium Leg Hover Unit Zionite Glidesys I Utility Hacking Suite Device Launcher Loader Storage Huge Storage Unit Processor Advanced Targeting Computer Hackware Hacking Suite Protection Improved Light Armor Plating Weapon Enhanced Autogun Energy Gun Cooled Pulse Rifle Ballistic Gun Enhanced Autogun Ballistic Cannon Assault Cannon Launcher Mini Smartbomb Launcher Special Weapon Remote Datajack Impact Weapon Heavy Flail Piercing Weapon CR-A16's Pointy Stick Special Melee Weapon Datajack Build | -11 -10 -9 -9 -9 -8 -8 -7 -7 -7 -7 -6 -6 -6 -6 -6 -6 ------- Run | Yrd Mat Mat Min Exi Min Mat Fac Low Low Dat Pro Fac Low Low Zio Dee Slots Evolved 9 | . 1 2 . . . 2 2 . . . . 2 . . . . Power 1 | . . . . . . 1 . . . . . . . . . . Propulsion 4 | . . 2 . . . . . . . . . 2 . . . . Utility 4 | . 1 . . . . 1 2 . . . . . . . . . Weapon . | . . . . . . . . . . . . . . . . . Parts Attached 126 | 8 5 13 . 1 4 18 14 4 2 . 20 7 7 5 3 15 Power 10 | 1 . 2 . . 1 2 2 . . . 1 . . . . 1 Engine 5 | 1 . 2 . . 1 1 . . . . . . . . . . Core 4 | . . . . . . 1 2 . . . 1 . . . . . Reactor 1 | . . . . . . . . . . . . . . . . 1 Propulsion 33 | 2 1 5 . . 3 8 2 . 2 . 1 2 2 . . 5 Treads . | . . . . . . . . . . . . . . . . . Leg 32 | 2 1 5 . . 3 8 2 . 2 . 1 2 2 . . 4 Wheel . | . . . . . . . . . . . . . . . . . Hover 1 | . . . . . . . . . . . . . . . . 1 Flight . | . . . . . . . . . . . . . . . . . Utility 30 | 3 3 3 . . . 2 7 . . . 2 2 1 3 1 3 Device 7 | . . . . . . . 3 . . . 1 1 . 1 1 . Storage 6 | 1 1 . . . . . 1 . . . . 1 . . . 2 Processor 5 | . 2 1 . . . . 1 . . . . . . 1 . . Hackware 2 | . . . . . . 1 1 . . . . . . . . . Protection 10 | 2 . 2 . . . 1 1 . . . 1 . 1 1 . 1 Artifact . | . . . . . . . . . . . . . . . . . Weapon 53 | 2 1 3 . 1 . 6 3 4 . . 16 3 4 2 2 6 Energy Gun 10 | . 1 2 . . . . . . . . . 1 1 1 1 3 Energy Cannon . | . . . . . . . . . . . . . . . . . Ballistic Gun 17 | 2 . 1 . 1 . 5 2 2 . . 4 . . . . . Ballistic Cannon 1 | . . . . . . 1 . . . . . . . . . . Launcher 13 | . . . . . . . 1 . . . 5 2 2 1 . 2 Special Weapon 3 | . . . . . . . . 1 . . 1 . . . 1 . Impact Weapon 4 | . . . . . . . . 1 . . 3 . . . . . Slashing Weapon . | . . . . . . . . . . . . . . . . . Piercing Weapon 1 | . . . . . . . . . . . . . . . . 1 Special Melee Weapon 4 | . . . . . . . . . . . 3 . 1 . . . Unidentified Prototypes 11 | . . . . . . 1 1 . . . 1 . . . 1 7 Parts Lost 13 | . . . . . 1 . . . . . 1 2 . . . 9 Power 3 | . . . . . 1 . . . . . . . . . . 2 Propulsion 4 | . . . . . . . . . . . . . . . . 4 Utility 4 | . . . . . . . . . . . 1 2 . . . 1 Weapon 2 | . . . . . . . . . . . . . . . . 2 Highest Loss Streak 5 | . . . . . 1 . . . . . 1 2 . . . 5 To Critical Strikes . | . . . . . . . . . . . . . . . . . Average Slot Usage (%) 93 | . 99 83 100 93 87 95 99 100 100 100 99 89 85 92 87 53 Engine 2 | . 12 10 10 10 10 15 . . . . . . . . . . Core 10 | . . . . . . . 13 14 14 14 14 12 12 12 12 5 Leg 30 | . 24 25 40 40 37 32 27 28 28 28 28 35 35 37 31 18 Device 6 | . . . . . . . 7 7 7 7 7 5 6 9 11 7 Storage 8 | . 12 10 10 10 10 8 7 7 7 7 7 8 12 12 12 8 Processor 5 | . 12 10 10 10 10 8 7 7 7 7 7 3 . 5 . . Hackware 7 | . . . . . . 7 14 14 14 14 14 4 . . . . Protection 6 | . 12 10 10 10 10 8 7 7 7 7 7 6 6 2 6 3 Energy Gun 2 | . 11 8 10 3 . . . . . . . 2 3 5 6 . Ballistic Gun 6 | . 12 10 10 10 10 11 6 11 14 14 6 . . . . . Launcher 3 | . . . . . . . . . . . 4 6 8 6 6 7 Peak Build Rating 75 | 7 13 17 17 30 31 45 59 60 61 61 65 72 71 74 75 75 Average Rating 54 | 5 11 13 17 24 30 36 54 59 60 61 61 67 67 73 72 43 On Entrance 43 | . 7 13 17 17 30 30 37 59 60 61 61 62 66 70 74 72 Naked Turns 222 | . . . . . . . . . . . . . . . . 222 Heaviest Build 141 | 21 33 35 35 40 40 45 127 127 125 125 127 138 136 135 133 141 Greatest Support 102 | 20 20 43 43 43 46 61 74 74 75 75 75 98 100 100 100 102 Greatest Overweight (x) 2 | 1 1 1 . . 1 1 2 1 1 1 1 1 1 1 1 2 Average Overweight (x) . | . 1 . . . . . . 1 1 1 1 1 1 1 1 . Largest Inventory Capacity 25 | 10 15 15 15 15 15 15 25 25 25 25 25 25 25 25 25 25 Average Capacity 22 | 8 12 15 15 15 15 15 23 25 25 25 25 25 25 25 25 17 Most Carried 25 | 5 15 15 15 15 15 15 25 25 25 25 25 25 25 22 25 25 Average Carried 20 | 3 9 14 15 15 14 14 19 24 25 25 24 24 23 20 23 15 Final Capacity 25 | 10 15 15 15 15 15 15 25 25 25 25 25 25 25 25 25 5 Final Carried 25 | 4 15 15 15 15 15 15 25 25 25 25 25 25 22 21 24 4 Class Distribution -------------------- 100% | Hacker-Mutant Dominant Class ---------------- Hacker-Mutant | -10/Materials Hacker-Mutant | -9/Materials Hacker-Mutant | -9/Mines Hacker-Mutant | -9/Exiles Hacker-Mutant | -8/Mines Hacker-Mutant | -8/Materials Hacker-Mutant | -7/Factory Hacker-Mutant | -7/Lower Caves Hacker-Mutant | -7/Lower Caves Hacker-Mutant | -7/Data Miner Hacker-Mutant | -6/Proximity Caves Hacker-Mutant | -6/Factory Hacker-Mutant | -6/Lower Caves Hacker-Mutant | -6/Lower Caves Hacker-Mutant | -6/Zion Hacker-Mutant | -6/Deep Caves Resources | -11 -10 -9 -9 -9 -8 -8 -7 -7 -7 -7 -6 -6 -6 -6 -6 -6 ----------- Run | Yrd Mat Mat Min Exi Min Mat Fac Low Low Dat Pro Fac Low Low Zio Dee Matter Collected 3984 | 265 149 211 15 . 50 498 667 361 68 . 728 122 292 371 55 132 Remotely 229 | . . . . . . . . . . . . . . 229 . . Salvage Created 5400 | . 264 306 24 . 317 1724 667 218 150 . 965 196 131 129 . 309 Parts 294 | . 21 25 . . 17 88 52 10 9 . 41 13 8 4 . 6 Haulers Intercepted 7 | . 2 1 . . . 3 1 . . . . . . . . . Recyclers Shooed 3 | . 1 . . . . 2 . . . . . . . . . . Parts Field Recycled . | . . . . . . . . . . . . . . . . . Retrieved Matter . | . . . . . . . . . . . . . . . . . Parts Self-Destructed . | . . . . . . . . . . . . . . . . . Prevented . | . . . . . . . . . . . . . . . . . Kills | -11 -10 -9 -9 -9 -8 -8 -7 -7 -7 -7 -6 -6 -6 -6 -6 -6 ------- Run | Yrd Mat Mat Min Exi Min Mat Fac Low Low Dat Pro Fac Low Low Zio Dee Combat Hostiles Destroyed 116 | . 8 8 4 . 8 25 15 5 3 . 16 6 2 2 . 14 Melee 1 | . . . . . . . . 1 . . . . . . . . Guns 84 | . 8 8 4 . 8 25 3 4 3 . 16 . 1 . . 4 Cannons 12 | . . . . . . . 12 . . . . . . . . . AOE 19 | . . . . . . . . . . . . 6 1 2 . 10 Classes Destroyed 22 | . 4 3 1 . . 4 3 1 . . 4 . . 1 . 1 Worker 2 | . . . . . . 1 . . . . . 1 . . . . Builder 2 | . . . . . . . 1 . . . . 1 . . . . Tunneler 1 | . . . . . . . 1 . . . . . . . . . Hauler 7 | . 2 1 . . . 3 1 . . . . . . . . . Recycler 3 | . . . . . . 3 . . . . . . . . . . Minesweeper 1 | . . . . . . . . 1 . . . . . . . . Mechanic 1 | . . . . . . . . . . . 1 . . . . . Operator 2 | . . . . . . 1 1 . . . . . . . . . Watcher 14 | . 2 2 . . . 4 4 . . . . 2 . . . . Swarmer 19 | . 5 3 . . 2 3 3 . . . 3 . . . . . Grunt 36 | . 3 2 . . 3 11 6 4 3 . 4 . . . . . Brawler 5 | . . 1 . . 1 1 . . . . 2 . . . . . Duelist 4 | . . 1 . . 2 . . . . . 1 . . . . . Protector 1 | . . . . . . . . . . . 1 . . . . . Sentry 18 | . . 1 . . . 9 1 . . . 2 5 . . . . Demolisher 2 | . . . . . . . . . . . 2 . . . . . Hunter 5 | . . . . . . 1 . . . . . 2 2 . . . Programmer 7 | . . . . . . . 5 1 . . 1 . . . . . Behemoth 1 | . . . . . . . . . . . 1 . . . . . Z-Light 11 | . . . . . . . . . . . . . . . . 11 Master Thief 2 | . . . . . . . . . . . . . . 2 . . Assembled 6 | . . . 4 . . . . . . . . . . . . 2 Best Kill Streak 8 | . 2 5 4 . 4 8 5 2 2 . 4 4 2 2 . 6 Combat Bots Only 6 | . 2 3 4 . 4 5 4 2 2 . 4 3 2 2 . 6 Max Kills in Single Turn 3 | . 1 1 2 . 1 2 2 1 1 . 1 2 1 1 . 3 Gunslinging 1 | . . . 1 . . . . . . . . . . . . . Exploded 3 | . . . . . . . . . . . . 1 1 1 . 3 Melee 1 | . . . . . . . . 1 . . . . . . . . Uniques/NPCs Destroyed 1 | . . . . . . . . . . . . . . . . 1 Z-Imprinter (-6/Deep Caves) Combat | -11 -10 -9 -9 -9 -8 -8 -7 -7 -7 -7 -6 -6 -6 -6 -6 -6 -------- Run | Yrd Mat Mat Min Exi Min Mat Fac Low Low Dat Pro Fac Low Low Zio Dee Hostile Shots Fired 596 | . 34 41 15 . 15 86 67 26 14 . 70 114 15 4 . 95 Missed 184 | . 9 13 5 . 5 27 17 5 3 . 23 47 4 . . 26 Damage Taken 4999 | . 199 221 131 . 83 531 441 153 89 . 482 817 110 278 . 1464 Core 1161 | . 11 18 23 . . 96 37 28 9 . 83 158 20 50 . 628 Absorbed by Shields 182 | . . . . . . . 12 67 37 . 66 . . . . . Ignored by Resistances 2970 | . 129 139 81 . 52 324 280 131 73 . 326 358 66 168 . 843 Regen/Repaired (Parts) 196 | . 27 91 . . . . 78 . . . . . . . . . Core Remaining (%) 88 | 100 95 . . . 89 82 . . . . 77 . . . . . Volleys Fired 327 | . 33 22 5 . . 50 52 22 6 . 66 25 7 13 . 26 Largest 2 | . 2 2 2 . . 2 2 2 2 . 2 1 1 1 . 2 Hottest 90 | . 85 85 85 . . 69 69 50 50 . 90 80 80 80 . 86 Shots Fired 657 | . 58 44 10 . 31 156 104 36 12 . 125 25 7 13 . 36 Gun 540 | . 58 44 10 . 31 154 52 28 12 . 122 5 4 9 . 11 Cannon 62 | . . . . . . 2 52 8 . . . . . . . . Launcher 54 | . . . . . . . . . . . 2 20 3 4 . 25 Special 1 | . . . . . . . . . . . 1 . . . . . Kinetic 521 | . 33 22 5 . 31 156 104 36 12 . 122 . . . . . Thermal 81 | . 25 22 5 . . . . . . . . 5 4 9 . 11 Explosive 54 | . . . . . . . . . . . 2 20 3 4 . 25 Electromagnetic . | . . . . . . . . . . . . . . . . . Robot Hit Streak 35 | . 34 21 8 . 25 27 12 24 35 . 27 19 19 16 . 23 Robot Miss Streak 5 | . 5 2 3 . 1 2 1 1 . . 2 1 . 1 . 1 Penetration Max 2 | . . . . . . 2 . . . . . . . . . . Secondary Targets 9 | . 2 2 1 . . 2 . 1 1 . . . . . . . Max Gunslinging Chain 1 | . 1 1 1 . . 1 . 1 1 . . . . . . . Autonomous 93 | . . . . . 31 62 . . . . . . . . . . Shots Hit Robots 568 | . 46 36 10 . 30 135 83 35 11 . 120 14 5 12 . 31 Core Hits 364 | . 47 40 16 . 11 53 37 11 7 . 45 47 6 11 . 33 Critical Kills 1 | . . . . . . . . 1 . . . . . . . . Critical Parts Destroyed 1 | . . . . . . . . 1 . . . . . . . . Critical Strikes 7 | . . . . . . . 2 2 . . . 1 . 1 . 1 Burn 3 | . . . . . . . . . . . . 1 . 1 . 1 Blast 2 | . . . . . . . 2 . . . . . . . . . Smash 2 | . . . . . . . . 2 . . . . . . . . Melee Attacks 37 | . . . . . . . . 9 . . 25 . 1 . . 2 Impact 27 | . . . . . . . . 9 . . 18 . . . . . Slashing . | . . . . . . . . . . . . . . . . . Piercing 2 | . . . . . . . . . . . . . . . . 2 Sneak Attacks 11 | . . . . . . . . 1 . . 9 . 1 . . . Combat Hostiles . | . . . . . . . . . . . . . . . . . Follow-up Attacks . | . . . . . . . . . . . . . . . . . Damage Inflicted 15891 | . 661 555 153 . 987 3085 1840 748 186 . 2411 1432 340 730 . 2763 Guns 9239 | . 661 555 153 . 865 3060 678 425 186 . 1804 194 133 172 . 353 Cannons 1249 | . . . . . . 25 1162 62 . . . . . . . . Explosions 4535 | . . . . . 122 . . . . . . 1238 207 558 . 2410 Melee 868 | . . . . . . . . 261 . . 607 . . . . . Ramming . | . . . . . . . . . . . . . . . . . Kinetic 8827 | . 310 185 65 . 865 3085 1840 487 186 . 1804 . . . . . Thermal 1783 | . 351 370 88 . 122 . . . . . . 194 133 172 . 353 Explosive 4235 | . . . . . . . . . . . . 1060 207 558 . 2410 Electromagnetic 178 | . . . . . . . . . . . . 178 . . . . Impact 868 | . . . . . . . . 261 . . 607 . . . . . Slashing . | . . . . . . . . . . . . . . . . . Piercing . | . . . . . . . . . . . . . . . . . Highest Corruption 2 | . . . . . . . 2 . . . . . . . . . Average Corruption 1 | . . . . . . . 1 . . . . . . . . . Corruption Purged 5 | . . . . . . . 5 . . . . . . . . . Corruption Blocked . | . . . . . . . . . . . . . . . . . Effects 4 | . . . . . . . 4 . . . . . . . . . Message Errors 1 | . . . . . . . 1 . . . . . . . . . Matter Fused 2 | . . . . . . . 2 . . . . . . . . . Heat Flow Errors 1 | . . . . . . . 1 . . . . . . . . . Overload Shots 18 | . . . . . . . . . . . . 5 3 . . 10 Effects 3 | . . . . . . . . . . . . 1 . . . 2 Energy Bleed 1 | . . . . . . . . . . . . . . . . 1 Heat Surge 1 | . . . . . . . . . . . . 1 . . . . Short Circuit 1 | . . . . . . . . . . . . . . . . 1 Overflow Damage 321 | . . . . . 8 . 10 126 . . 60 2 . 5 . 110 Projectiles 33 | . . . . . . . 10 23 . . . . . . . . Explosions 125 | . . . . . 8 . . . . . . 2 . 5 . 110 Melee 163 | . . . . . . . . 103 . . 60 . . . . . Knockbacks 9 | . . . . . . . 9 . . . . . . . . . Impact . | . . . . . . . . . . . . . . . . . Kinetic 9 | . . . . . . . 9 . . . . . . . . . Secondary . | . . . . . . . . . . . . . . . . . Self-Inflicted Damage 473 | . 57 . . . 16 . . . . . . 117 . 283 . . Shots 25 | . 1 . . . 1 . . . . . . 9 . 14 . . Rammed . | . . . . . . . . . . . . . . . . . Targets Rammed . | . . . . . . . . . . . . . . . . . Kicked . | . . . . . . . . . . . . . . . . . Crushed . | . . . . . . . . . . . . . . . . . Highest Temperature 357 | . 188 318 121 . . 138 243 184 77 . 167 357 122 101 . 235 Average Temperature 66 | . 46 110 60 . . 46 69 67 31 . 40 122 44 49 . 78 Received Heat Transfer 1709 | . 72 132 40 . 36 369 171 90 66 . 157 84 . . . 492 Effects 5 | . . . . . . . 3 . . . . 2 . . . . Shutdowns 1 | . . . . . . . . . . . . 1 . . . . Interference 3 | . . . . . . . 3 . . . . . . . . . Short Circuit 1 | . . . . . . . . . . . . 1 . . . . Siege Activations . | . . . . . . . . . . . . . . . . . Robots Corrupted 2 | . . . . . . . . 1 . . 1 . . . . . Combat Hostiles . | . . . . . . . . . . . . . . . . . Parts Fried 3 | . . . . . . . . 3 . . . . . . . . Impact Corruptions 6 | . . . . . . . . 4 . . 2 . . . . . Robots Melted . | . . . . . . . . . . . . . . . . . Combat Hostiles . | . . . . . . . . . . . . . . . . . Parts Melted 2 | . . . . . . . . . . . 1 1 . . . . Heat Transferred 2711 | . 450 475 105 . 150 . . . . . . 350 187 407 . 587 Parts Sabotaged . | . . . . . . . . . . . . . . . . . Parts Stolen 2 | . . . . . . . . . . . . . . 2 . . Parts Stripped . | . . . . . . . . . . . . . . . . . Power Chain Reactions . | . . . . . . . . . . . . . . . . . Alert | -11 -10 -9 -9 -9 -8 -8 -7 -7 -7 -7 -6 -6 -6 -6 -6 -6 ------- Run | Yrd Mat Mat Min Exi Min Mat Fac Low Low Dat Pro Fac Low Low Zio Dee Peak Influence 444 | . 157 251 69 . 245 444 174 . . . . 254 . . . . Initial 69 | . . . 69 . . . 47 . . . . . . . . . Average 91 | . 40 78 69 . 74 228 56 . . . . 66 . . . . Maximum Alert Level 2 | . . 1 . . 1 2 . . . . . 1 . . . . Low Security (%) 85 | 100 100 92 100 . 87 39 100 . . . . 88 . . . . Level 1 14 | . . 7 . . 12 60 . . . . . 11 . . . . Level 2 . | . . . . . . . . . . . . . . . . . Level 3 . | . . . . . . . . . . . . . . . . . Level 4 . | . . . . . . . . . . . . . . . . . Level 5 . | . . . . . . . . . . . . . . . . . High Security . | . . . . . . . . . . . . . . . . . Max Security . | . . . . . . . . . . . . . . . . . Squads Dispatched 16 | . 1 . . . . 4 6 . . . 1 4 . . . . Investigation 4 | . 1 . . . . 1 2 . . . . . . . . . Extermination 3 | . . . . . . . 3 . . . . . . . . . Reinforcement 2 | . . . . . . . 1 . . . . 1 . . . . Assault 1 | . . . . . . . . . . . 1 . . . . . Garrison 6 | . . . . . . 3 . . . . . 3 . . . . Intercept . | . . . . . . . . . . . . . . . . . Searches Triggered . | . . . . . . . . . . . . . . . . . Construction Impeded 1 | . . . . . . . . . . . . 1 . . . . Haulers Reinforced 1 | . . . . . . . 1 . . . . . . . . . Active Scanning Responses . | . . . . . . . . . . . . . . . . . Cargo Convoy Interrupts . | . . . . . . . . . . . . . . . . . Stealth | -11 -10 -9 -9 -9 -8 -8 -7 -7 -7 -7 -6 -6 -6 -6 -6 -6 --------- Run | Yrd Mat Mat Min Exi Min Mat Fac Low Low Dat Pro Fac Low Low Zio Dee Distress Signals 37 | . 1 1 . . . 2 . . . . 33 . . . . . Communications Jammed . | . . . . . . . . . . . . . . . . . Distress Signals . | . . . . . . . . . . . . . . . . . Times Spotted 201 | . 16 11 20 . 8 30 25 5 3 . 31 7 2 2 . 41 Peak Tracking Total 17 | . 4 4 17 . 3 3 3 2 2 . 8 2 2 2 . 8 Tactical Retreats 2 | . . 1 . . . 1 . . . . . . . . . . Traps | -11 -10 -9 -9 -9 -8 -8 -7 -7 -7 -7 -6 -6 -6 -6 -6 -6 ------- Run | Yrd Mat Mat Min Exi Min Mat Fac Low Low Dat Pro Fac Low Low Zio Dee Traps Triggered 6 | . . 3 . . . . 2 . . . 1 . . . . . Indirectly . | . . . . . . . . . . . . . . . . . Trap Hack Attempts . | . . . . . . . . . . . . . . . . . Triggered . | . . . . . . . . . . . . . . . . . Disarmed . | . . . . . . . . . . . . . . . . . Reprogrammed 4 | . . . . . . 4 . . . . . . . . . . Reused . | . . . . . . . . . . . . . . . . . Traps Extracted . | . . . . . . . . . . . . . . . . . Installed 12 | . . . . . . . . 12 . . . . . . . . Triggered 1 | . . . . . . . . 1 . . . . . . . . Machines | -11 -10 -9 -9 -9 -8 -8 -7 -7 -7 -7 -6 -6 -6 -6 -6 -6 ---------- Run | Yrd Mat Mat Min Exi Min Mat Fac Low Low Dat Pro Fac Low Low Zio Dee Machines Disabled 24 | . 2 . . . 6 2 1 . . . 7 5 . . . 1 Max in Single Turn 6 | . 1 . . . 6 1 1 . . . 2 4 . . . 1 Machines Repaired . | . . . . . . . . . . . . . . . . . Machines Dismantled . | . . . . . . . . . . . . . . . . . Machines Sabotaged . | . . . . . . . . . . . . . . . . . Overloaded Fab Kills . | . . . . . . . . . . . . . . . . . Hacking | -11 -10 -9 -9 -9 -8 -8 -7 -7 -7 -7 -6 -6 -6 -6 -6 -6 --------- Run | Yrd Mat Mat Min Exi Min Mat Fac Low Low Dat Pro Fac Low Low Zio Dee Machines Accessed 36 | . 8 2 . 3 1 8 7 . . 4 . 1 1 1 . . Terminals 22 | . 6 1 . . 1 7 4 . . . . 1 1 1 . . Fabricators 2 | . . . . . . . 2 . . . . . . . . . Repair Stations 3 | . 1 1 . . . . 1 . . . . . . . . . Recycling Units 1 | . 1 . . . . . . . . . . . . . . . Scanalyzers . | . . . . . . . . . . . . . . . . . Garrison Access 1 | . . . . . . 1 . . . . . . . . . . Total Hacks 140 | . 26 5 . 34 2 22 19 . . 27 . 2 2 1 . . Successful 119 | . 17 4 . 34 2 15 15 . . 27 . 2 2 1 . . Failed 21 | . 9 1 . . . 7 4 . . . . . . . . . Catastrophic . | . . . . . . . . . . . . . . . . . Database Lockouts . | . . . . . . . . . . . . . . . . . Manual 30 | . 8 1 . 1 1 6 7 . . . . 2 . . 4 . Terminals 59 | . 19 1 . . 2 20 12 . . . . 2 2 1 . . Fabricators 5 | . . . . . . . 5 . . . . . . . . . Repair Stations 8 | . 2 4 . . . . 2 . . . . . . . . . Recycling Units 5 | . 5 . . . . . . . . . . . . . . . Scanalyzers . | . . . . . . . . . . . . . . . . . Garrison Access 2 | . . . . . . 2 . . . . . . . . . . Terminal Hacks 90 | . 9 . . 34 1 10 6 . . 27 . . 2 1 . . Record 47 | . . . . 33 . . . . . 11 . . 2 1 . . Part Schematic 8 | . . . . . . . . . . 8 . . . . . . Robot Schematic 6 | . . . . . . . 1 . . 5 . . . . . . Robot Analysis 1 | . . . . . . 1 . . . . . . . . . . Prototype ID Bank 8 | . 2 . . . . 1 2 . . 3 . . . . . . Level Access Points 1 | . 1 . . . . . . . . . . . . . . . Branch Access Points 1 | . . . . . . . 1 . . . . . . . . . Emergency Access Points 1 | . . . . . . 1 . . . . . . . . . . Alert Level 1 | . 1 . . . . . . . . . . . . . . . Unreport Threat 1 | . . . . . . 1 . . . . . . . . . . Locate Traps 5 | . 2 . . . . 2 1 . . . . . . . . . Reprogram Traps 1 | . . . . . . 1 . . . . . . . . . . Dispatch Records 1 | . . . . . 1 . . . . . . . . . . . Registered Components 1 | . 1 . . . . . . . . . . . . . . . Registered Prototypes 1 | . . . . . . . 1 . . . . . . . . . Zone Layout 5 | . 2 . . . . 3 . . . . . . . . . . Derelict Proto ID Bank 1 | . . . . 1 . . . . . . . . . . . . Fabricator Hacks 4 | . . . . . . . 4 . . . . . . . . . Network Status 1 | . . . . . . . 1 . . . . . . . . . Load Schematic 1 | . . . . . . . 1 . . . . . . . . . Build 2 | . . . . . . . 2 . . . . . . . . . Repair Station Hacks 8 | . 2 4 . . . . 2 . . . . . . . . . Scan Component 4 | . 1 2 . . . . 1 . . . . . . . . . Repair 4 | . 1 2 . . . . 1 . . . . . . . . . Recycling Unit Hacks 2 | . 2 . . . . . . . . . . . . . . . Report Inventory 1 | . 1 . . . . . . . . . . . . . . . Retrieve Components 1 | . 1 . . . . . . . . . . . . . . . Scanalyzer . | . . . . . . . . . . . . . . . . . Garrison Access Hacks . | . . . . . . . . . . . . . . . . . Unauthorized Hacks 15 | . 4 . . . 1 5 3 . . . . 2 . . . . Terminals 13 | . 4 . . . 1 3 3 . . . . 2 . . . . Assimilate 5 | . . . . . . 2 2 . . . . 1 . . . . Botnet 7 | . 4 . . . . 1 1 . . . . 1 . . . . Detonate 1 | . . . . . 1 . . . . . . . . . . . Fabricators . | . . . . . . . . . . . . . . . . . Repair Stations . | . . . . . . . . . . . . . . . . . Recycling Units . | . . . . . . . . . . . . . . . . . Scanalyzers . | . . . . . . . . . . . . . . . . . Garrison Access 2 | . . . . . . 2 . . . . . . . . . . Reprogram 1 | . . . . . . 1 . . . . . . . . . . Watchers 1 | . . . . . . 1 . . . . . . . . . . Data Cores Recovered 1 | . . . . . . 1 . . . . . . . . . . Used . | . . . . . . . . . . . . . . . . . Hacking Detections 22 | . 6 2 . . . 7 5 . . . . 1 . 1 . . Full Trace Events 4 | . 1 . . . . 1 2 . . . . . . . . . Feedback Events . | . . . . . . . . . . . . . . . . . Feedback Blocked . | . . . . . . . . . . . . . . . . . Robot Schematics Acquired 6 | . . . . . . . 1 . . 5 . . . . . . Robots Built 3 | . . . . . . . 3 . . . . . . . . . Authchips . | . . . . . . . . . . . . . . . . . Time 38 | . . . . . . . 38 . . . . . . . . . Total Robot Build Rating 9 | . . . . . . . 9 . . . . . . . . . Part Schematics Acquired 8 | . . . . . . . . . . 8 . . . . . . Parts Built 2 | . . . . . . . 2 . . . . . . . . . Authchips . | . . . . . . . . . . . . . . . . . Time 106 | . . . . . . . 106 . . . . . . . . . Total Part Build Rating 12 | . . . . . . . 12 . . . . . . . . . Parts Repaired 4 | . 1 2 . . . . 1 . . . . . . . . . Time 104 | . 26 58 . . . . 20 . . . . . . . . . Parts Recycled . | . . . . . . . . . . . . . . . . . Recycled Matter . | . . . . . . . . . . . . . . . . . Retrieved Matter . | . . . . . . . . . . . . . . . . . Retrieved Components 2 | . 2 . . . . . . . . . . . . . . . Parts Scanalyzed . | . . . . . . . . . . . . . . . . . Part Schematics Acquired . | . . . . . . . . . . . . . . . . . Parts Damaged . | . . . . . . . . . . . . . . . . . Bothacking | -11 -10 -9 -9 -9 -8 -8 -7 -7 -7 -7 -6 -6 -6 -6 -6 -6 ------------ Run | Yrd Mat Mat Min Exi Min Mat Fac Low Low Dat Pro Fac Low Low Zio Dee Used RIF Installer . | . . . . . . . . . . . . . . . . . Robots Hacked 2 | . . . . . . . . . . . 1 . 1 . . . Non-combat 1 | . . . . . . . . . . . . . 1 . . . Combat 1 | . . . . . . . . . . . 1 . . . . . Robot Hacks Applied 2 | . . . . . . . . . . . 1 . 1 . . . parse_system 2 | . . . . . . . . . . . 1 . 1 . . . Manual 1 | . . . . . . . . . . . 1 . . . . . Relay Couplers Released . | . . . . . . . . . . . . . . . . . Fabnet Peak Effective % . | . . . . . . . . . . . . . . . . . Robots Rewired 4 | . . . . . . . . . . . 4 . . . . . Allies Hacked . | . . . . . . . . . . . . . . . . . Hacks Repelled . | . . . . . . . . . . . . . . . . . Allies | -11 -10 -9 -9 -9 -8 -8 -7 -7 -7 -7 -6 -6 -6 -6 -6 -6 -------- Run | Yrd Mat Mat Min Exi Min Mat Fac Low Low Dat Pro Fac Low Low Zio Dee Total Allies 12 | . . . . . . . 3 . . . 5 . . . 4 . Largest Group 4 | . . . . . . . 3 . . . 4 3 . . 4 . Highest-Rated Group 181 | . . . . . . . 48 . . . 181 100 . . 158 . Highest-Rated Ally 85 | . . . . . . . 16 . . . 85 34 . . 40 . Total Orders 2 | . . . . . . . . . . . 2 . . . . . ROAM 1 | . . . . . . . . . . . 1 . . . . . FOLLOW 1 | . . . . . . . . . . . 1 . . . . . Ally Attacks 93 | . . . . . . . 22 . . . 58 10 . . . 3 Total Damage 2643 | . . . . . . . 222 . . . 2195 191 . . . 35 Kills 17 | . . . . . . . 2 . . . 14 . . . . 1 Allies Corrupted . | . . . . . . . . . . . . . . . . . Allies Melted . | . . . . . . . . . . . . . . . . . Intel | -11 -10 -9 -9 -9 -8 -8 -7 -7 -7 -7 -6 -6 -6 -6 -6 -6 ------- Run | Yrd Mat Mat Min Exi Min Mat Fac Low Low Dat Pro Fac Low Low Zio Dee Robot Analysis Total 1 | . . . . . . 1 . . . . . . . . . . Derelict Logs Recovered 8 | . . . . . . . . 2 . . 2 . 1 2 1 . Drone Launches . | . . . . . . . . . . . . . . . . . Drone Recoveries . | . . . . . . . . . . . . . . . . . Exploration | -11 -10 -9 -9 -9 -8 -8 -7 -7 -7 -7 -6 -6 -6 -6 -6 -6 ------------- Run | Yrd Mat Mat Min Exi Min Mat Fac Low Low Dat Pro Fac Low Low Zio Dee Turns Passed 17917 | 90 955 340 316 480 474 1152 1929 1405 914 156 4018 537 945 1272 2101 833 Spaces Moved 9358 | 55 427 124 239 397 337 736 888 659 450 80 1859 253 477 624 1074 679 Core 463 | 19 . . . . . . . . . . . . . . . 444 Treads . | . . . . . . . . . . . . . . . . . Legs 8895 | 36 427 124 239 397 337 736 888 659 450 80 1859 253 477 624 1074 235 Wheels . | . . . . . . . . . . . . . . . . . Hover . | . . . . . . . . . . . . . . . . . Flight . | . . . . . . . . . . . . . . . . . Fastest Speed 50 | 50 190 120 120 120 120 115 117 200 197 197 195 193 193 193 193 50 Average Speed 173 | 131 190 167 120 120 134 116 187 200 199 197 195 193 193 193 193 106 Slowest Speed 270 | 190 190 190 120 120 190 190 270 200 200 197 197 194 194 193 194 266 Overloaded Moves . | . . . . . . . . . . . . . . . . . Propulsion Burnouts . | . . . . . . . . . . . . . . . . . Robots Hopped . | . . . . . . . . . . . . . . . . . Cave-ins Triggered 1 | . . . . . . . . . . . . 1 . . . . Exploration Rate (%) 59 | 4 78 15 54 88 82 70 25 62 58 69 97 7 63 68 91 81 Regions Visited 16 Branch Regions 11 Pre-discovered Areas 3 | . . . . 1 . . . . . 1 . . . . 1 . Known Exits Taken 16 | 1 1 1 1 1 1 1 1 1 1 1 1 1 1 1 1 . Unknown Exits Taken . | . . . . . . . . . . . . . . . . . Scrap Searched 17 | . . . . . . . . 2 4 . 2 . 2 2 5 . Spaces Dug 2 | . . . . . . . . 2 . . . . . . . . Terrain Destroyed 467 | . 45 . . . 34 14 1 2 . . . 175 30 67 . 99 Melee 2 | . . . . . . . . 2 . . . . . . . . Projectile 37 | . . . . . 22 14 1 . . . . . . . . . AOE 428 | . 45 . . . 12 . . . . . . 175 30 67 . 99 Terrain Rammed . | . . . . . . . . . . . . . . . . . Walls Destroyed . | . . . . . . . . . . . . . . . . . Machines Disabled . | . . . . . . . . . . . . . . . . . Actions | -11 -10 -9 -9 -9 -8 -8 -7 -7 -7 -7 -6 -6 -6 -6 -6 -6 --------- Run | Yrd Mat Mat Min Exi Min Mat Fac Low Low Dat Pro Fac Low Low Zio Dee Total 10549 | 73 515 207 258 401 360 961 1075 707 459 79 2136 292 495 679 1094 758 Wait 494 | . 28 43 15 . 15 126 83 . . . 137 . . 36 10 1 Move 9342 | 54 426 123 238 396 336 735 887 658 449 79 1858 252 476 623 1073 679 Hop . | . . . . . . . . . . . . . . . . . Pick Up 104 | 11 18 2 . 1 1 11 23 1 . . 11 4 1 2 5 13 Fast Attach 34 | . . 11 . 1 2 14 1 . 2 . 2 1 . . . . Attach 52 | 7 3 . . . 1 3 11 . . . 5 3 3 1 2 13 Detach 3 | . . . . . . . 1 . . . 2 . . . . . Swap 40 | 1 2 2 . . 1 1 2 4 . . 13 3 4 4 1 2 Drop 94 | . 5 4 . 3 4 21 10 1 2 . 12 4 3 . 3 22 Fire 327 | . 33 22 5 . . 50 52 22 6 . 66 25 7 13 . 26 Melee 37 | . . . . . . . . 9 . . 25 . 1 . . 2 Ram . | . . . . . . . . . . . . . . . . . Kick . | . . . . . . . . . . . . . . . . . Crush . | . . . . . . . . . . . . . . . . . Escape Stasis 10 | . . . . . . . 5 . . . 5 . . . . . Rewire . | . . . . . . . . . . . . . . . . . Trap 12 | . . . . . . . . 12 . . . . . . . . Miscellaneous . | . . . . . . . . . . . . . . . . . Route ------- -11/Scrapyard -10/Materials (discovered 5 exits: *Mat x3 / *Min x2) -9/Materials -9/Mines (discovered 3 exits: *Mat x2 / *Exi) -9/Exiles -8/Mines -8/Materials (discovered 2 exits: *Fac x2) -7/Factory (discovered 5 exits: *Fac / Sto x2 / *Low x2) -7/Lower Caves -7/Lower Caves (discovered 2 exits: *Fac / *Dat) -7/Data Miner -6/Proximity Caves -6/Factory -6/Lower Caves -6/Lower Caves (discovered 2 exits: *Fac / *Zio) -6/Zion (discovered 2 exits: *Dee / *Pro) -6/Deep Caves (discovered 1 exit: *Pro) History --------- Turn | Location | Event 12 | -11/Scrapyard | Identified exit to Materials 12 | -11/Scrapyard | Discovered exit to Materials (range 16) 91 | -11/Scrapyard | Entered Materials 91 | -10/Materials | Evolved 1 slot: Utility x1 285 | -10/Materials | Identified exit to Mines 285 | -10/Materials | Discovered exit to Mines (range 7) 311 | -10/Materials | Build established: Hacker-Mutant 409 | -10/Materials | Identified exit to Materials 626 | -10/Materials | Repaired Aluminum Leg 905 | -10/Materials | Discovered exit to Mines (range 15) 1046 | -10/Materials | Entered another Materials area 1046 | -9/Materials | Evolved 2 slots: Propulsion x2 1128 | -9/Materials | Repaired Aluminum Leg 1161 | -9/Materials | Repaired Spread Laser 1301 | -9/Materials | Identified exit to Mines 1301 | -9/Materials | Discovered exit to Mines (range 11) 1386 | -9/Materials | Entered Mines 1387 | -9/Mines | Assembled infested the area 1392 | -9/Mines | Assisted by a Guerilla fighting off Assembled 1396 | -9/Mines | Met a Derelict bent on vengeance 1464 | -9/Mines | Identified exit to Materials 1464 | -9/Mines | Discovered exit to Materials (range 16) 1595 | -9/Mines | Discovered exit to Materials (range 8) 1697 | -9/Mines | Deemed a non-threat by the Exiles lab entrance 1697 | -9/Mines | Identified exit to Exiles 1697 | -9/Mines | Discovered exit to Exiles (range 5) 1702 | -9/Mines | Entered Exiles 1730 | -9/Exiles | Met 8R-AWN 1753 | -9/Exiles | Met EX-HEX 1797 | -9/Exiles | Met EX-DEC 1839 | -9/Exiles | Met EX-BIN 1856 | -9/Exiles | Aligned with FarCom system 1857 | -9/Exiles | Given EX-Vault access code 1886 | -9/Exiles | Opened EX-Vault 1892 | -9/Exiles | Found AWS/Gauss 1895 | -9/Exiles | Found Skeleton Box 1927 | -9/Exiles | Warned to stay clear of 0b10 Research branches 1970 | -9/Exiles | Learned location of Zion (-6) 2018 | -9/Exiles | Visited The Gauntlet 2167 | -9/Exiles | Identified exit to Mines 2167 | -9/Exiles | Discovered exit to Mines (range 14) 2182 | -9/Exiles | Stole two prototypes: AWS/Gauss, Skeleton Box 2182 | -9/Exiles | Entered Mines 2547 | -8/Mines | Discovered exit to Materials (range 11) 2656 | -8/Mines | Entered Materials 2656 | -8/Materials | Evolved 2 slots: Power x1, Utility x1 3080 | -8/Materials | AWS/Gauss suddenly broke down 3185 | -8/Materials | Identified exit to Factory 3185 | -8/Materials | Discovered exit to Factory (range 16) 3748 | -8/Materials | Discovered exit to Factory (range 13) 3808 | -8/Materials | Entered Factory 3808 | -7/Factory | Evolved 2 slots: Utility x2 3810 | -7/Factory | FarCom data flow suspended 3926 | -7/Factory | Fabricated Neutrino Core (x2) 4404 | -7/Factory | Identified exit to Storage 4404 | -7/Factory | Identified exit to Lower Caves 4610 | -7/Factory | Identified exit to Factory 4610 | -7/Factory | Discovered exit to Factory (range 6) 4720 | -7/Factory | Fabricated G-47 Trooper (x3) 4826 | -7/Factory | Repaired Enh. Autogun 5737 | -7/Factory | Entered Lower Caves 6441 | -7/Lower Caves | Learned 4 Factory zone layouts 6469 | -7/Lower Caves | Learned 4 Factory zone layouts 6705 | -7/Lower Caves | Identified exit to Lower Caves 6705 | -7/Lower Caves | Discovered exit to Lower Caves (range 15) 7142 | -7/Lower Caves | Entered another Lower Caves area 7490 | -7/Lower Caves | Discovered exit to Factory (range 6) 7821 | -7/Lower Caves | Encountered a Warlord checkpoint 7920 | -7/Lower Caves | Found DCF Scrap (14 items) 8023 | -7/Lower Caves | Identified exit to Data Miner 8023 | -7/Lower Caves | Discovered exit to Data Miner (range 3) 8056 | -7/Lower Caves | Entered Data Miner 8056 | -7/Data Miner | Identified exit to Proximity Caves 8056 | -7/Data Miner | Discovered exit to Proximity Caves (range 6) 8094 | -7/Data Miner | Met Data Miner 8137 | -7/Data Miner | Learned location of Section 7 (-2) 8137 | -7/Data Miner | Acquired the access code to Warlord's prototype stash 8167 | -7/Data Miner | Received God Mode back door access code from Data Miner 8212 | -7/Data Miner | Entered Proximity Caves 8395 | -6/Proximity Caves | Received a Behemoth hack from an annoying Tinkerer 8798 | -6/Proximity Caves | Spotted B-75 Beast 8806 | -6/Proximity Caves | Befriended a Behemoth using the annoying Tinkerer's hack 9004 | -6/Proximity Caves | Attracted the attention of an 0b10 outpost 9473 | -6/Proximity Caves | Learned Factory garrison access intel 9973 | -6/Proximity Caves | Discovered exit to Factory (range 16) 10213 | -6/Proximity Caves | Found Prototype Launcher 10214 | -6/Proximity Caves | Identified Mni. Smartbomb Launcher 10217 | -6/Proximity Caves | Found Mni. Smartbomb Launcher 10225 | -6/Proximity Caves | Found Rocket Array 10229 | -6/Proximity Caves | Found Rocket Array 10661 | -6/Proximity Caves | Destroyed B-75 Beast 12230 | -6/Proximity Caves | Entered Factory 12230 | -6/Factory | Accompanied by 3 allies 12230 | -6/Factory | Evolved 2 slots: Propulsion x2 12232 | -6/Factory | Loaded intel: 3 garrison access locations 12384 | -6/Factory | Found Launcher Loader 12510 | -6/Factory | Garrison activated, responded to threat 12514 | -6/Factory | Crushed by falling debris 12544 | -6/Factory | Lost 3 allies 12652 | -6/Factory | Identified exit to Lower Caves 12652 | -6/Factory | Discovered exit to Lower Caves (range 14) 12767 | -6/Factory | Entered Lower Caves 13020 | -6/Lower Caves | Learned Factory non-interactive machine intel 13375 | -6/Lower Caves | Identified exit to Lower Caves 13375 | -6/Lower Caves | Discovered exit to Lower Caves (range 12) 13712 | -6/Lower Caves | Entered another Lower Caves area 13712 | -6/Lower Caves | Spotted 7V-QG7(f) 13712 | -6/Lower Caves | Spotted ST-NKE(f) 13713 | -6/Lower Caves | Skeleton Box stolen by Master Thief 13714 | -6/Lower Caves | Encountered a Master Thief 13714 | -6/Lower Caves | Encountered a Master Thief 13714 | -6/Lower Caves | Destroyed 7V-QG7(f) 13717 | -6/Lower Caves | Hvy. Flail stolen by Master Thief 13719 | -6/Lower Caves | Destroyed ST-NKE(f) 13770 | -6/Lower Caves | Learned Factory terminal intel 13971 | -6/Lower Caves | Identified exit to Factory 13971 | -6/Lower Caves | Discovered exit to Factory (range 3) 14933 | -6/Lower Caves | Identified exit to Zion 14933 | -6/Lower Caves | Discovered exit to Zion (range 9) 14943 | -6/Lower Caves | Learned Factory emergency access door positions 14984 | -6/Lower Caves | Entered Zion 15135 | -6/Zion | Learned Factory non-interactive machine intel 15183 | -6/Zion | Found CR-A16's Pointy Stick 15236 | -6/Zion | Identified exit to Proximity Caves 15236 | -6/Zion | Discovered exit to Proximity Caves (range 14) 15540 | -6/Zion | Found Prototype Special Weapon 15541 | -6/Zion | Identified RU-N14's Throwing Claymores 15874 | -6/Zion | Acquired unknown access codes intercepted by a Zionite 16718 | -6/Zion | Met Imprinter 16755 | -6/Zion | Imprinted 16757 | -6/Zion | Declared Zion's savior 17040 | -6/Zion | Opened final containment barrier to the Deep Caves 17066 | -6/Zion | Identified exit to Deep Caves 17066 | -6/Zion | Discovered exit to Deep Caves (range 7) 17073 | -6/Zion | Saw the warning signs outside the Deep Caves entrance 17085 | -6/Zion | Entered Deep Caves 17085 | -6/Deep Caves | Accompanied by 4 allies 17361 | -6/Deep Caves | Attacked by Z-Imprinter 17382 | -6/Deep Caves | Destroyed Z-Imprinter 17411 | -6/Deep Caves | Lost 4 parts (1p3n) 17495 | -6/Deep Caves | Z-Facility disabled 17647 | -6/Deep Caves | Lost 5 parts (1p1n1u2w) 17698 | -6/Deep Caves | Found Prototype Protection 17699 | -6/Deep Caves | Identified Zio. Weapon Casing 17786 | -6/Deep Caves | Identified exit to Proximity Caves 17786 | -6/Deep Caves | Discovered exit to Proximity Caves (range 6) 17897 | -6/Deep Caves | Spotted AG-58267 17904 | -6/Deep Caves | Triggered Deep Caves wall 17905 | -6/Deep Caves | Core integrity fell below 50% 17906 | -6/Deep Caves | Exposed GOLEM chamber 17910 | -6/Deep Caves | Found GOLEM Unit 17914 | -6/Deep Caves | Found GOLEM Unit 17915 | -6/Deep Caves | Core integrity fell below 20% 17918 | -6/Deep Caves | Destroyed by as-47584 with Assembled Heavy Rifle Last Messages --------------- Dropped Zio. Biocell. Dropped Zio. Laser-S. Dropped Zio. Phaser-S. Acquired Prototype Protection. Identified Zio. Weapon Casing. Dropped Zio. Weapon Casing. EXIT=FOUND: PROXIMITY CAVES Acquired CR-A16's Pointy Stick. Acquired Great Maul. AG-58267: "DSI9AT1D G8OHIBQ29FWG 26R186 QD12WHW8W33 TDK1 81FTS" The wall dematerializes. as-87364 released from Mobile Assembly Unit. Wall Chamber breached. A GOLEM Unit tumbles out of the Wall Chamber. Acquired GOLEM Unit. A GOLEM Unit tumbles out of the Wall Chamber. Acquired GOLEM Unit. Dropped Great Maul. Map ----- +----------------------------------------------------+ | ????????????????????????????????## | | ????????????????????????????????# | | ????????????????????????????????# | | ?????????????????????????????????# | | ?????????????????????????????????## | | ?????????????????????????????????## | | ????????????????????????????????## | | ????????????????????????????????# | | ????????????????????????????????# | | ????????? ??????????????????## | | ??????? ?????????????????## | | ?????? a ???????????????# | | ??????a a = ?????????##### | | ??????a a a = * ??????## | | ???????aaaa a = ?????# | | ???????a a ?????# ### | | ????????a aaa a b ?## ??# | | ????????a a s ??# ??? | | ?????????aaaaa ??# #?# | | ????????? a [ #?# ## | | ?????????"a ! *[ [ #?# | | ?????????" #?## | | ??????#""" M M #??# | | ??????#/""b !! ! ##?## | | ??????#" ! / ! #??# | | ???????## @ / [ #??# | | ????????" g ls #??# | | ????????" ##### | | ????????" / | | ????????"""GM ! | | ????????" ! | | ????????"" ######## | | ????????" #??????? | | ????????"" ##??????? | | ????????" # # #???????? | | ????????" #;## ## ## ##???????? | | ????????""" ###### ## ####????????? | | ?????????" ????###? ????????????? | | ?????????######????????#????????????? | | | | | | | | | | | | | | | | | | | | | | | +----------------------------------------------------+ Best States ------------- Heat Dissipation 37 Energy Generation 33 Energy Capacity 700 Matter Stores 450 Matter Capacity 450 Sight Range 16 Terrain Scan Range 20 Terrain Scan Density 10 Armor Coverage 300 Resistance: KI 35 Resistance: TH 35 Resistance: EX 35 Resistance: EM 35 Resistance: I 35 Resistance: S 35 Resistance: P 35 Weapon Shielding 100 Evasion (%) 63 Targeting Accuracy 8 Offensive Hacking 40 Authchip Count 6 Item Schematics ----------------- Combat Drone Bay | -7/Data Miner | Free Lgt. Regenerative Plating | -7/Data Miner | Free Biomechanical Wings | -7/Data Miner | Free Exp. Utility Shielding | -7/Data Miner | Free Cld. Plasma Cannon | -7/Data Miner | Free Antigrav System | -7/Data Miner | Free Imp. Shock Absorption System | -7/Data Miner | Free Tesla Rifle | -7/Data Miner | Free Robot Schematics ------------------ G-47 Trooper | -7/Factory | Hacked G-50 Soldier | -7/Data Miner | Free M-22 Extractor | -7/Data Miner | Free M-14 Sweeper | -7/Data Miner | Free Y-54 Guardian | -7/Data Miner | Free H-66 Slayer | -7/Data Miner | Free Fabricated ------------ Neutrino Core | x2 | -7/Factory | Preloaded G-47 Trooper | x3 | -7/Factory Alien Tech Used ----------------- None Achievements -------------- Woof! Challenges ------------ None Game ------ Seed TerrainCompanionInterpreter Manual? 0 Play Time 01:39:24 Cumulative 90.0 hours Start 2024.09.09 @ 14:42:33 End 2024.09.15 @ 16:26:50 Sessions 4 Manual Loads 0 Difficulty Explorer Special Mode None Game No. 92 Rogue 77 Adventurer 1 Explorer 14 Win Type - Total 9 Types 7/0/0/2/0/0/0/0/0 Lore% 50 Gallery% 58 Achievement% 57 Wizard Run 0 Options --------- Layout 1 ASCII 0 Keyboard 0 Movement Mouse Keybinds 0 Fullscreen 1 Font 24/Smallcaps Map View 50x40 Zoom Use 0% Tactical HUD 0 Map Filters NONE Filters NONE Steam 1 RUN: cb5ddbfd-7427-4f24-abf0-8f291b8060fe